Workbook

Sheet 24.09.2025
E1: ______________Утверждаю Директор ГБОУ Белокатайская КШИ
A2: МЕНЮ
B3: ="24 сентября 2025 г." -> 24 сентября 2025 г.
B5: ГБОУ Белокатайская КШИ
B6: =Группа -> школы младшие классы
A7: ГБОУ Белокатайская КШИ | C7: =Группа -> школы младшие классы
A8: Код блюда | B8: Наименование блюда | C8: Выход, г | D8: Белки, г | F8: Жиры, г | H8: Углево-ды, г | I8: ЭЦ, ккал | J8: НЖК | K8: ПНЖК | L8: МЖК | M8: Холестерин | N8: МД | O8: Крахмал | P8: ПВ | Q8: РПВ | R8: НПВ | S8: Органические кислоты | T8: Зола | U8: Na | V8: K | W8: Ca | X8: Mg | Y8: P | Z8: Fe | AA8: Витамин А | AB8: B | AC8: РЭ | AD8: ТЭ | AE8: В1 | AF8: В2 | AG8: РР | AH8: НЭ | AI8: С | AJ8: Алкоголь, г | AK8: Валин | AL8: изолейцин | AM8: лейцин | AN8: лизин | AO8: метионин | AP8: треонин | AQ8: триптофан | AR8: фенилаланин | AS8: аланин | AT8: аргинин | AU8: аспарагиновая | AV8: гистидин | AW8: глицин | AX8: глутаминовая | AY8: оксипролин | AZ8: пролин | BA8: серин | BB8: тирозин | BC8: цистин | BD8: масляная | BE8: капроновая | BF8: каприловая | BG8: каприновая | BH8: лауриновая | BI8: миристиновая | BJ8: пентадекановая | BK8: пальмитиновая | BL8: маргариновая | BM8: стеариновая | BN8: арахиновая | BO8: бегеновая | BP8: лигноцериновая | BQ8: миристолеиновая | BR8: пальмитолеиновая | BS8: олеиновая | BT8: гадолеиновая | BU8: эруковая | BV8: линолевая | BW8: линоленовая | BX8: арахидоновая | BY8: Аденин | BZ8: Гуанин | CA8: Ph
D9: всего | E9: в т.ч. жив. | F9: всего | G9: в т.ч. раст.
B10: Завтрак
A11: ="аа" -> аа | B11: Запеканка из творога с морковью с молоком сгущенным №244, сб. 2018 г. | C11: ="170/30" -> 170/30 | D11: 23.96 | E11: 22.39 | F11: 17.49 | G11: 0.14 | H11: 42.53 | I11: 419.56 | J11: 10.78 | K11: 0.12 | L11: 0 | M11: 0 | N11: 33.85 | O11: 7.45 | P11: 1.24 | Q11: 0 | R11: 0 | S11: 1.57 | T11: 2.65 | U11: 175.99 | V11: 343.19 | W11: 296.61 | X11: 51.33 | Y11: 322.74 | Z11: 1 | AA11: 106.46 | AB11: 4098.41 | AC11: 871.14 | AD11: 0.69 | AE11: 0.09 | AF11: 0.45 | AG11: 0.95 | AH11: 6.04 | AI11: 1.58 | AJ11: 0 | AK11: 245.15 | AL11: 217.6 | AM11: 324.32 | AN11: 250.79 | AO11: 92.95 | AP11: 170.6 | AQ11: 56.16 | AR11: 201.25 | AS11: 164.93 | AT11: 181.61 | AU11: 315.82 | AV11: 98.07 | AW11: 115.44 | AX11: 994.17 | AY11: 0.83 | AZ11: 370.98 | BA11: 245.82 | BB11: 162.26 | BC11: 65.52 | BD11: 0.14 | BE11: 0.07 | BF11: 0.04 | BG11: 0.08 | BH11: 0.09 | BI11: 0.43 | BJ11: 0 | BK11: 1.19 | BL11: 0 | BM11: 0.37 | BN11: 0 | BO11: 0 | BP11: 0 | BQ11: 0.08 | BR11: 0.12 | BS11: 1.67 | BT11: 0 | BU11: 0 | BV11: 0.1 | BW11: 0.02 | BX11: 0.02 | BY11: 0 | BZ11: 0 | CA11: 0 | CB11: 152.35 | CC11: 52.79 | CE11: 789.53 | CG11: 0 | CH11: 0 | CI11: 0 | CJ11: 0 | CK11: 0 | CL11: 0 | CM11: 0 | CN11: 0 | CO11: 0 | CP11: 11.33 | CQ11: 0.2
A12: ="аа" -> аа | B12: Какао с молоком № 306, сб.2018г. | C12: ="200" -> 200 | D12: 3.68 | E12: 3.34 | F12: 3.56 | G12: 0.00 | H12: 14.99 | I12: 103.00 | J12: 2.52 | K12: 0 | L12: 0.22 | M12: 0 | N12: 14.04 | O12: 0.18 | P12: 0.77 | Q12: 0 | R12: 0 | S12: 0.21 | T12: 0.97 | U12: 57.6 | V12: 179.89 | W12: 124.41 | X12: 22.88 | Y12: 103.72 | Z12: 0.59 | AA12: 13.8 | AB12: 9.58 | AC12: 25.37 | AD12: 0.01 | AE12: 0.03 | AF12: 0.14 | AG12: 0.13 | AH12: 1.08 | AI12: 0.6 | AJ12: 0 | AK12: 0 | AL12: 0 | AM12: 0 | AN12: 0 | AO12: 0 | AP12: 0 | AQ12: 0 | AR12: 0 | AS12: 0 | AT12: 0 | AU12: 0 | AV12: 0 | AW12: 0 | AX12: 0 | AY12: 0 | AZ12: 0 | BA12: 0 | BB12: 0 | BC12: 0 | BD12: 0 | BE12: 0 | BF12: 0 | BG12: 0 | BH12: 0 | BI12: 0 | BJ12: 0 | BK12: 0 | BL12: 0 | BM12: 0 | BN12: 0 | BO12: 0 | BP12: 0 | BQ12: 0 | BR12: 0 | BS12: 0 | BT12: 0 | BU12: 0 | BV12: 0 | BW12: 0 | BX12: 0 | BY12: 0 | BZ12: 0 | CA12: 0 | CB12: 201.79 | CC12: 8.24 | CE12: 15.4 | CG12: 0 | CH12: 0 | CI12: 0 | CJ12: 0 | CK12: 0 | CL12: 0 | CM12: 0 | CN12: 0 | CO12: 0 | CP12: 7 | CQ12: 0
A13: ="-" -> - | B13: Хлеб пшеничный формовой из муки 1 сорта | C13: ="90" -> 90 | D13: 6.84 | E13: 0.00 | F13: 0.81 | G13: 0.81 | H13: 42.21 | I13: 207.04 | J13: 0 | K13: 0 | L13: 0 | M13: 0 | N13: 0.99 | O13: 41.04 | P13: 0.18 | Q13: 0 | R13: 0 | S13: 0 | T13: 1.62 | U13: 0 | V13: 0 | W13: 0 | X13: 0 | Y13: 0 | Z13: 0 | AA13: 0 | AB13: 0 | AC13: 0 | AD13: 0 | AE13: 0 | AF13: 0 | AG13: 0 | AH13: 0 | AI13: 0 | AJ13: 0 | AK13: 330.3 | AL13: 343.8 | AM13: 526.5 | AN13: 174.6 | AO13: 103.5 | AP13: 207 | AQ13: 78.3 | AR13: 374.4 | AS13: 232.2 | AT13: 324 | AU13: 267.3 | AV13: 140.4 | AW13: 248.4 | AX13: 2077.2 | AY13: 0 | AZ13: 676.8 | BA13: 294.3 | BB13: 195.3 | BC13: 154.8 | BD13: 0 | BE13: 0 | BF13: 0 | BG13: 0 | BH13: 0 | BI13: 0 | BJ13: 0 | BK13: 0.1 | BL13: 0 | BM13: 0.01 | BN13: 0 | BO13: 0 | BP13: 0 | BQ13: 0 | BR13: 0.01 | BS13: 0.08 | BT13: 0 | BU13: 0 | BV13: 0.34 | BW13: 0.02 | BX13: 0 | BY13: 0 | BZ13: 0 | CA13: 0 | CB13: 35.19 | CC13: 5.89 | CE13: 0 | CG13: 0 | CH13: 0 | CI13: 0 | CJ13: 0 | CK13: 0 | CL13: 0 | CM13: 0 | CN13: 0 | CO13: 0 | CP13: 0 | CQ13: 0
A14: ="" ->  | B14: Масло сливочное | C14: ="10" -> 10 | D14: 0.08 | E14: 0.08 | F14: 7.25 | G14: 0.00 | H14: 0.13 | I14: 66.06 | J14: 4.71 | K14: 0.22 | L14: 0 | M14: 0 | N14: 0.13 | O14: 0 | P14: 0 | Q14: 0 | R14: 0 | S14: 0 | T14: 0.14 | U14: 1.5 | V14: 3 | W14: 2.4 | X14: 0 | Y14: 3 | Z14: 0.02 | AA14: 40 | AB14: 30 | AC14: 45 | AD14: 0.1 | AE14: 0 | AF14: 0.01 | AG14: 0.01 | AH14: 0.02 | AI14: 0 | AJ14: 0 | AK14: 4.2 | AL14: 4.1 | AM14: 7.6 | AN14: 4.5 | AO14: 1.7 | AP14: 4.7 | AQ14: 4.3 | AR14: 4.2 | AS14: 3.6 | AT14: 2.6 | AU14: 5.7 | AV14: 3.5 | AW14: 2.4 | AX14: 14.2 | AY14: 0 | AZ14: 4.8 | BA14: 5.4 | BB14: 4.2 | BC14: 1 | BD14: 0.27 | BE14: 0.12 | BF14: 0.07 | BG14: 0.15 | BH14: 0.17 | BI14: 0.79 | BJ14: 0 | BK14: 2.21 | BL14: 0 | BM14: 0.68 | BN14: 0 | BO14: 0 | BP14: 0 | BQ14: 0.15 | BR14: 0.23 | BS14: 1.8 | BT14: 0 | BU14: 0 | BV14: 0.09 | BW14: 0.01 | BX14: 0 | BY14: 0 | BZ14: 0 | CA14: 0 | CB14: 2.5 | CC14: 8.5 | CE14: 45 | CG14: 0 | CH14: 0 | CI14: 0 | CJ14: 0 | CK14: 0 | CL14: 0 | CM14: 0 | CN14: 0 | CO14: 0 | CP14: 0 | CQ14: 0
B15: Итого за 'Завтрак' | D15: 34.56 | E15: 25.80 | F15: 29.10 | G15: 0.95 | H15: 99.87 | I15: 795.65 | J15: 18 | K15: 0.34 | L15: 0.22 | M15: 0 | N15: 49.01 | O15: 48.67 | P15: 2.19 | Q15: 0 | R15: 0 | S15: 1.78 | T15: 5.38 | U15: 235.09 | V15: 526.07 | W15: 423.41 | X15: 74.21 | Y15: 429.46 | Z15: 1.61 | AA15: 160.26 | AB15: 4137.99 | AC15: 941.51 | AD15: 0.8 | AE15: 0.13 | AF15: 0.6 | AG15: 1.09 | AH15: 7.15 | AI15: 2.18 | AJ15: 0 | AK15: 579.65 | AL15: 565.5 | AM15: 858.42 | AN15: 429.89 | AO15: 198.15 | AP15: 382.3 | AQ15: 138.76 | AR15: 579.85 | AS15: 400.73 | AT15: 508.21 | AU15: 588.82 | AV15: 241.97 | AW15: 366.24 | AX15: 3085.57 | AY15: 0.83 | AZ15: 1052.58 | BA15: 545.52 | BB15: 361.76 | BC15: 221.32 | BD15: 0.41 | BE15: 0.19 | BF15: 0.1 | BG15: 0.23 | BH15: 0.26 | BI15: 1.22 | BJ15: 0 | BK15: 3.5 | BL15: 0 | BM15: 1.06 | BN15: 0 | BO15: 0 | BP15: 0 | BQ15: 0.24 | BR15: 0.37 | BS15: 3.56 | BT15: 0 | BU15: 0 | BV15: 0.53 | BW15: 0.05 | BX15: 0.02 | BY15: 0 | BZ15: 0 | CA15: 0 | CB15: 391.83 | CC15: =SUM($CC$10:$CC$14) -> 75.42 | CD15: =$I$15/$I$43*100 -> 45.14326241 | CE15: 849.92 | CG15: 0 | CH15: 0 | CI15: 0 | CJ15: 0 | CK15: 0 | CL15: 0 | CM15: 0 | CN15: 0 | CO15: 0 | CP15: 18.33 | CQ15: 0.2
B16: Завтрак 2
A17: ="" ->  | B17: Сок фруктовый | C17: ="200" -> 200 | D17: 1.00 | E17: 0.00 | F17: 0.20 | G17: 0.00 | H17: 20.60 | I17: 86.48 | J17: 0 | K17: 0 | L17: 0 | M17: 0 | N17: 19.8 | O17: 0.4 | P17: 0.4 | Q17: 0 | R17: 0 | S17: 1 | T17: 0.6 | U17: 0 | V17: 240 | W17: 14 | X17: 8 | Y17: 14 | Z17: 2.8 | AA17: 0 | AB17: 0 | AC17: 0 | AD17: 0.2 | AE17: 0.02 | AF17: 0.02 | AG17: 0.2 | AH17: 0.4 | AI17: 4 | AJ17: 0.4 | AK17: 16 | AL17: 20 | AM17: 28 | AN17: 28 | AO17: 4 | AP17: 16 | AQ17: 4 | AR17: 14 | AS17: 26 | AT17: 16 | AU17: 116 | AV17: 10 | AW17: 22 | AX17: 64 | AY17: 0 | AZ17: 20 | BA17: 24 | BB17: 10 | BC17: 8 | BD17: 0 | BE17: 0 | BF17: 0 | BG17: 0 | BH17: 0 | BI17: 0 | BJ17: 0 | BK17: 0 | BL17: 0 | BM17: 0 | BN17: 0 | BO17: 0 | BP17: 0 | BQ17: 0 | BR17: 0 | BS17: 0 | BT17: 0 | BU17: 0 | BV17: 0 | BW17: 0 | BX17: 0 | BY17: 0 | BZ17: 0 | CA17: 0 | CB17: 176.2 | CC17: 20.5 | CE17: 0 | CG17: 0 | CH17: 0 | CI17: 0 | CJ17: 0 | CK17: 0 | CL17: 0 | CM17: 0 | CN17: 0 | CO17: 0 | CP17: 0 | CQ17: 0
B18: Итого за 'Завтрак 2' | D18: 1.00 | E18: 0.00 | F18: 0.20 | G18: 0.00 | H18: 20.60 | I18: 86.48 | J18: 0 | K18: 0 | L18: 0 | M18: 0 | N18: 19.8 | O18: 0.4 | P18: 0.4 | Q18: 0 | R18: 0 | S18: 1 | T18: 0.6 | U18: 0 | V18: 240 | W18: 14 | X18: 8 | Y18: 14 | Z18: 2.8 | AA18: 0 | AB18: 0 | AC18: 0 | AD18: 0.2 | AE18: 0.02 | AF18: 0.02 | AG18: 0.2 | AH18: 0.4 | AI18: 4 | AJ18: 0.4 | AK18: 16 | AL18: 20 | AM18: 28 | AN18: 28 | AO18: 4 | AP18: 16 | AQ18: 4 | AR18: 14 | AS18: 26 | AT18: 16 | AU18: 116 | AV18: 10 | AW18: 22 | AX18: 64 | AY18: 0 | AZ18: 20 | BA18: 24 | BB18: 10 | BC18: 8 | BD18: 0 | BE18: 0 | BF18: 0 | BG18: 0 | BH18: 0 | BI18: 0 | BJ18: 0 | BK18: 0 | BL18: 0 | BM18: 0 | BN18: 0 | BO18: 0 | BP18: 0 | BQ18: 0 | BR18: 0 | BS18: 0 | BT18: 0 | BU18: 0 | BV18: 0 | BW18: 0 | BX18: 0 | BY18: 0 | BZ18: 0 | CA18: 0 | CB18: 176.2 | CC18: =SUM($CC$16:$CC$17) -> 20.5 | CD18: =$I$18/$I$43*100 -> 4.906666667 | CE18: 0 | CG18: 0 | CH18: 0 | CI18: 0 | CJ18: 0 | CK18: 0 | CL18: 0 | CM18: 0 | CN18: 0 | CO18: 0 | CP18: 0 | CQ18: 0
B19: Обед
A20: ="" ->  | B20: Винегрет овощной с сельдью №43, сб.2018 г. | C20: ="70/30" -> 70/30 | D20: 6.00 | E20: 5.00 | F20: 4.30 | G20: 0.00 | H20: 7.08 | I20: 88.67 | J20: 0.55 | K20: 0 | L20: 0.01 | M20: 0 | N20: 3.53 | O20: 2.22 | P20: 1.32 | Q20: 0 | R20: 0 | S20: 0.27 | T20: 4.7 | U20: 1411.2 | V20: 263.65 | W20: 43.14 | X20: 25.41 | Y20: 109.46 | Z20: 0.91 | AA20: 5.88 | AB20: 830.61 | AC20: 147.26 | AD20: 0.43 | AE20: 0.04 | AF20: 0.07 | AG20: 0.89 | AH20: 1.92 | AI20: 9.3 | AJ20: 0 | AK20: 14.19 | AL20: 16.81 | AM20: 19.88 | AN20: 24.51 | AO20: 4.94 | AP20: 15.6 | AQ20: 5.3 | AR20: 14.52 | AS20: 17.41 | AT20: 36.39 | AU20: 66.6 | AV20: 5.01 | AW20: 13.38 | AX20: 87.31 | AY20: 0 | AZ20: 13.15 | BA20: 15.23 | BB20: 12.76 | BC20: 4.86 | BD20: 0 | BE20: 0 | BF20: 0 | BG20: 0 | BH20: 0 | BI20: 0 | BJ20: 0 | BK20: 0.01 | BL20: 0 | BM20: 0 | BN20: 0 | BO20: 0 | BP20: 0 | BQ20: 0 | BR20: 0 | BS20: 0.03 | BT20: 0 | BU20: 0 | BV20: 0.02 | BW20: 0 | BX20: 0 | BY20: 0 | BZ20: 0 | CA20: 0 | CB20: 77.29 | CC20: 23.51 | CE20: 144.31 | CG20: 0 | CH20: 0 | CI20: 0 | CJ20: 0 | CK20: 0 | CL20: 0 | CM20: 0 | CN20: 0 | CO20: 0 | CP20: 0.35 | CQ20: 0.18
A21: ="аа" -> аа | B21: Суп картофельный с макаронами №61, сб.2018 г. | C21: ="250" -> 250 | D21: 2.83 | E21: 0.02 | F21: 2.16 | G21: 0.00 | H21: 21.83 | I21: 116.07 | J21: 1.23 | K21: 0.05 | L21: 0.1 | M21: 0 | N21: 2.82 | O21: 17.15 | P21: 1.86 | Q21: 0 | R21: 0 | S21: 0.2 | T21: 1.91 | U21: 313.42 | V21: 471.83 | W21: 18.16 | X21: 23.01 | Y21: 60.28 | Z21: 0.98 | AA21: 9.6 | AB21: 1099.98 | AC21: 213.05 | AD21: 0.31 | AE21: 0.1 | AF21: 0.06 | AG21: 1.03 | AH21: 1.8 | AI21: 6.6 | AJ21: 0 | AK21: 70.23 | AL21: 76.43 | AM21: 122.72 | AN21: 73.68 | AO21: 23.82 | AP21: 64.42 | AQ21: 26.4 | AR21: 83.75 | AS21: 80.92 | AT21: 161.84 | AU21: 99.74 | AV21: 32.3 | AW21: 68.24 | AX21: 493.26 | AY21: 0 | AZ21: 122.26 | BA21: 73.94 | BB21: 49.6 | BC21: 30.76 | BD21: 0.06 | BE21: 0.03 | BF21: 0.02 | BG21: 0.04 | BH21: 0.04 | BI21: 0.19 | BJ21: 0 | BK21: 0.59 | BL21: 0 | BM21: 0.17 | BN21: 0 | BO21: 0 | BP21: 0 | BQ21: 0.04 | BR21: 0.06 | BS21: 0.54 | BT21: 0 | BU21: 0 | BV21: 0.13 | BW21: 0 | BX21: 0 | BY21: 0 | BZ21: 0 | CA21: 0 | CB21: 268.66 | CC21: 9.15 | CE21: 192.93 | CG21: 0 | CH21: 0 | CI21: 0 | CJ21: 0 | CK21: 0 | CL21: 0 | CM21: 0 | CN21: 0 | CO21: 0 | CP21: 0 | CQ21: 0.8
A22: ="аа" -> аа | B22: Кнели куриные с рисом №142, сб.2018 г. | C22: ="90" -> 90 | D22: 15.39 | E22: 15.85 | F22: 16.10 | G22: 0.00 | H22: 5.67 | I22: 229.21 | J22: 5.4 | K22: 0.07 | L22: 3.78 | M22: 0 | N22: 0.47 | O22: 5 | P22: 0.21 | Q22: 0 | R22: 0 | S22: 0.01 | T22: 1.14 | U22: 121.09 | V22: 164.99 | W22: 23.69 | X22: 17.82 | Y22: 140.61 | Z22: 1.28 | AA22: 44.28 | AB22: 14.85 | AC22: 77.21 | AD22: 0.49 | AE22: 0.05 | AF22: 0.12 | AG22: 5.37 | AH22: 11.01 | AI22: 0.66 | AJ22: 0 | AK22: 30.96 | AL22: 24.55 | AM22: 46.1 | AN22: 19.71 | AO22: 11.82 | AP22: 18.35 | AQ22: 8.31 | AR22: 27.41 | AS22: 28.66 | AT22: 36.88 | AU22: 39.89 | AV22: 13.04 | AW22: 23.36 | AX22: 89.08 | AY22: 0 | AZ22: 24.75 | BA22: 24.92 | BB22: 21.75 | BC22: 9.99 | BD22: 0.07 | BE22: 0.03 | BF22: 0.02 | BG22: 0.04 | BH22: 0.05 | BI22: 0.21 | BJ22: 0 | BK22: 0.6 | BL22: 0 | BM22: 0.18 | BN22: 0 | BO22: 0 | BP22: 0 | BQ22: 0.04 | BR22: 0.06 | BS22: 0.5 | BT22: 0 | BU22: 0 | BV22: 0.04 | BW22: 0 | BX22: 0 | BY22: 0 | BZ22: 0 | CA22: 0 | CB22: 63.29 | CC22: 54.2 | CE22: 46.76 | CG22: 0 | CH22: 0 | CI22: 0 | CJ22: 0 | CK22: 0 | CL22: 0 | CM22: 0 | CN22: 0 | CO22: 0 | CP22: 0 | CQ22: 0.3
A23: ="" ->  | B23: Картофель тушеный №146, сб. 2021г. | C23: ="180" -> 180 | D23: 3.78 | E23: 0.12 | F23: 9.79 | G23: 0.00 | H23: 30.08 | I23: 219.72 | J23: 6.94 | K23: 0.32 | L23: 0.15 | M23: 0 | N23: 5.92 | O23: 20.98 | P23: 3.18 | Q23: 0 | R23: 0 | S23: 0.52 | T23: 3.07 | U23: 234.42 | V23: 878.32 | W23: 31.45 | X23: 42.1 | Y23: 107.16 | Z23: 1.64 | AA23: 34.56 | AB23: 1849.48 | AC23: 442.42 | AD23: 0.47 | AE23: 0.16 | AF23: 0.12 | AG23: 1.86 | AH23: 3.24 | AI23: 14.54 | AJ23: 0 | AK23: 48.92 | AL23: 69.01 | AM23: 89.65 | AN23: 98.83 | AO23: 18.21 | AP23: 69.31 | AQ23: 35.94 | AR23: 69.9 | AS23: 96.42 | AT23: 240.61 | AU23: 131.25 | AV23: 27.29 | AW23: 67.13 | AX23: 375.44 | AY23: 0 | AZ23: 54.73 | BA23: 51.73 | BB23: 51.88 | BC23: 22.09 | BD23: 0.34 | BE23: 0.16 | BF23: 0.08 | BG23: 0.19 | BH23: 0.22 | BI23: 1.01 | BJ23: 0 | BK23: 2.9 | BL23: 0 | BM23: 0.88 | BN23: 0 | BO23: 0 | BP23: 0 | BQ23: 0.2 | BR23: 0.3 | BS23: 2.5 | BT23: 0 | BU23: 0 | BV23: 0.27 | BW23: 0.01 | BX23: 0 | BY23: 0 | BZ23: 0 | CA23: 0 | CB23: 167.64 | CC23: 19.25 | CE23: 342.81 | CG23: 0 | CH23: 0 | CI23: 0 | CJ23: 0 | CK23: 0 | CL23: 0 | CM23: 0 | CN23: 0 | CO23: 0 | CP23: 0 | CQ23: 0.6
A24: ="" ->  | B24: Чай с молоком и сахаром №301, сб. 2018 г. | C24: ="180" -> 180 | D24: 1.40 | E24: 1.31 | F24: 1.31 | G24: 0.05 | H24: 6.95 | I24: 43.74 | J24: 0.9 | K24: 0 | L24: 0 | M24: 0 | N24: 6.86 | O24: 0 | P24: 0.09 | Q24: 0 | R24: 0 | S24: 0.05 | T24: 0.37 | U24: 22.55 | V24: 57.96 | W24: 47.66 | X24: 5.48 | Y24: 35.24 | Z24: 0.05 | AA24: 5.4 | AB24: 3.6 | AC24: 9.9 | AD24: 0 | AE24: 0.01 | AF24: 0.05 | AG24: 0.04 | AH24: 0.36 | AI24: 0.23 | AJ24: 0 | AK24: 0 | AL24: 0 | AM24: 0 | AN24: 0 | AO24: 0 | AP24: 0 | AQ24: 0 | AR24: 0 | AS24: 0 | AT24: 0 | AU24: 0 | AV24: 0 | AW24: 0 | AX24: 0 | AY24: 0 | AZ24: 0 | BA24: 0 | BB24: 0 | BC24: 0 | BD24: 0 | BE24: 0 | BF24: 0 | BG24: 0 | BH24: 0 | BI24: 0 | BJ24: 0 | BK24: 0 | BL24: 0 | BM24: 0 | BN24: 0 | BO24: 0 | BP24: 0 | BQ24: 0 | BR24: 0 | BS24: 0 | BT24: 0 | BU24: 0 | BV24: 0 | BW24: 0 | BX24: 0 | BY24: 0 | BZ24: 0 | CA24: 0 | CB24: 165.86 | CC24: 3.6 | CE24: 6 | CG24: 0 | CH24: 0 | CI24: 0 | CJ24: 0 | CK24: 0 | CL24: 0 | CM24: 0 | CN24: 0 | CO24: 0 | CP24: 5.4 | CQ24: 0
A25: ="-" -> - | B25: Хлеб пшеничный формовой из муки 1 сорта | C25: ="20" -> 20 | D25: 1.52 | E25: 0.00 | F25: 0.18 | G25: 0.18 | H25: 9.38 | I25: 46.01 | J25: 0 | K25: 0 | L25: 0 | M25: 0 | N25: 0.22 | O25: 9.12 | P25: 0.04 | Q25: 0 | R25: 0 | S25: 0 | T25: 0.36 | U25: 0 | V25: 0 | W25: 0 | X25: 0 | Y25: 0 | Z25: 0 | AA25: 0 | AB25: 0 | AC25: 0 | AD25: 0 | AE25: 0 | AF25: 0 | AG25: 0 | AH25: 0 | AI25: 0 | AJ25: 0 | AK25: 73.4 | AL25: 76.4 | AM25: 117 | AN25: 38.8 | AO25: 23 | AP25: 46 | AQ25: 17.4 | AR25: 83.2 | AS25: 51.6 | AT25: 72 | AU25: 59.4 | AV25: 31.2 | AW25: 55.2 | AX25: 461.6 | AY25: 0 | AZ25: 150.4 | BA25: 65.4 | BB25: 43.4 | BC25: 34.4 | BD25: 0 | BE25: 0 | BF25: 0 | BG25: 0 | BH25: 0 | BI25: 0 | BJ25: 0 | BK25: 0.02 | BL25: 0 | BM25: 0 | BN25: 0 | BO25: 0 | BP25: 0 | BQ25: 0 | BR25: 0 | BS25: 0.02 | BT25: 0 | BU25: 0 | BV25: 0.08 | BW25: 0 | BX25: 0 | BY25: 0 | BZ25: 0 | CA25: 0 | CB25: 7.82 | CC25: 1.31 | CE25: 0 | CG25: 0 | CH25: 0 | CI25: 0 | CJ25: 0 | CK25: 0 | CL25: 0 | CM25: 0 | CN25: 0 | CO25: 0 | CP25: 0 | CQ25: 0
A26: ="" ->  | B26: Хлеб ржаной | C26: ="40" -> 40 | D26: 2.64 | E26: 0.00 | F26: 0.48 | G26: 0.00 | H26: 16.68 | I26: 77.35 | J26: 0.08 | K26: 0 | L26: 0.08 | M26: 0 | N26: 0.48 | O26: 12.88 | P26: 3.32 | Q26: 0 | R26: 0 | S26: 0.4 | T26: 1 | U26: 0 | V26: 98 | W26: 14 | X26: 18.8 | Y26: 63.2 | Z26: 1.56 | AA26: 0 | AB26: 2 | AC26: 0.4 | AD26: 0.56 | AE26: 0.07 | AF26: 0.03 | AG26: 0.28 | AH26: 0.8 | AI26: 0 | AJ26: 0 | AK26: 128.8 | AL26: 99.2 | AM26: 170.8 | AN26: 89.2 | AO26: 37.2 | AP26: 79.2 | AQ26: 32 | AR26: 148.4 | AS26: 118.8 | AT26: 116.4 | AU26: 185.6 | AV26: 49.6 | AW26: 124 | AX26: 611.6 | AY26: 0 | AZ26: 210.4 | BA26: 116.4 | BB26: 72 | BC26: 52 | BD26: 0 | BE26: 0 | BF26: 0 | BG26: 0 | BH26: 0 | BI26: 0 | BJ26: 0 | BK26: 0.06 | BL26: 0 | BM26: 0 | BN26: 0.01 | BO26: 0 | BP26: 0 | BQ26: 0 | BR26: 0 | BS26: 0.04 | BT26: 0 | BU26: 0 | BV26: 0.19 | BW26: 0.03 | BX26: 0 | BY26: 0 | BZ26: 0 | CA26: 0 | CB26: 18.8 | CC26: 2.62 | CE26: 0.33 | CG26: 0 | CH26: 0 | CI26: 0 | CJ26: 0 | CK26: 0 | CL26: 0 | CM26: 0 | CN26: 0 | CO26: 0 | CP26: 0 | CQ26: 0
B27: Итого за 'Обед' | D27: 33.56 | E27: 22.28 | F27: 34.32 | G27: 0.23 | H27: 97.67 | I27: 820.77 | J27: 15.09 | K27: 0.44 | L27: 4.13 | M27: 0 | N27: 20.3 | O27: 67.35 | P27: 10.02 | Q27: 0 | R27: 0 | S27: 1.45 | T27: 12.55 | U27: 2102.68 | V27: 1934.74 | W27: 178.1 | X27: 132.63 | Y27: 515.94 | Z27: 6.42 | AA27: 99.72 | AB27: 3800.52 | AC27: 890.25 | AD27: 2.26 | AE27: 0.43 | AF27: 0.45 | AG27: 9.47 | AH27: 19.13 | AI27: 31.33 | AJ27: 0 | AK27: 366.5 | AL27: 362.4 | AM27: 566.15 | AN27: 344.73 | AO27: 118.99 | AP27: 292.87 | AQ27: 125.36 | AR27: 427.19 | AS27: 393.81 | AT27: 664.12 | AU27: 582.48 | AV27: 158.45 | AW27: 351.31 | AX27: 2118.28 | AY27: 0 | AZ27: 575.7 | BA27: 347.63 | BB27: 251.39 | BC27: 154.1 | BD27: 0.48 | BE27: 0.22 | BF27: 0.12 | BG27: 0.27 | BH27: 0.3 | BI27: 1.41 | BJ27: 0 | BK27: 4.18 | BL27: 0 | BM27: 1.25 | BN27: 0.01 | BO27: 0 | BP27: 0 | BQ27: 0.27 | BR27: 0.43 | BS27: 3.64 | BT27: 0 | BU27: 0 | BV27: 0.73 | BW27: 0.05 | BX27: 0 | BY27: 0 | BZ27: 0 | CA27: 0 | CB27: 769.37 | CC27: =SUM($CC$19:$CC$26) -> 113.64 | CD27: =$I$27/$I$43*100 -> 46.56851064 | CE27: 733.14 | CG27: 0 | CH27: 0 | CI27: 0 | CJ27: 0 | CK27: 0 | CL27: 0 | CM27: 0 | CN27: 0 | CO27: 0 | CP27: 5.75 | CQ27: 1.88
B28: Полдник
A29: ="" ->  | B29: Печенье | C29: ="15" -> 15 | D29: 0.96 | E29: 0.96 | F29: 2.52 | G29: 0.00 | H29: 10.55 | I29: 66.11 | J29: 1.47 | K29: 0 | L29: 1.47 | M29: 0 | N29: 10.28 | O29: 0 | P29: 0.27 | Q29: 0 | R29: 0 | S29: 0 | T29: 0.08 | U29: 0 | V29: 12.75 | W29: 3.45 | X29: 1.5 | Y29: 9.75 | Z29: 0.12 | AA29: 18 | AB29: 10.8 | AC29: 19.8 | AD29: 0.15 | AE29: 0.02 | AF29: 0.01 | AG29: 0.09 | AH29: 0.26 | AI29: 0 | AJ29: 0 | AK29: 0 | AL29: 0 | AM29: 0 | AN29: 0 | AO29: 0 | AP29: 0 | AQ29: 0 | AR29: 0 | AS29: 0 | AT29: 0 | AU29: 0 | AV29: 0 | AW29: 0 | AX29: 0 | AY29: 0 | AZ29: 0 | BA29: 0 | BB29: 0 | BC29: 0 | BD29: 0 | BE29: 0 | BF29: 0 | BG29: 0 | BH29: 0 | BI29: 0 | BJ29: 0 | BK29: 0 | BL29: 0 | BM29: 0 | BN29: 0 | BO29: 0 | BP29: 0 | BQ29: 0 | BR29: 0 | BS29: 0 | BT29: 0 | BU29: 0 | BV29: 0 | BW29: 0 | BX29: 0 | BY29: 0 | BZ29: 0 | CA29: 0 | CB29: 0.9 | CC29: 3.15 | CE29: 19.8 | CG29: 0 | CH29: 0 | CI29: 0 | CJ29: 0 | CK29: 0 | CL29: 0 | CM29: 0 | CN29: 0 | CO29: 0 | CP29: 0 | CQ29: 0
A30: ="" ->  | B30: Компот из плодов или ягод сушеных №310, сб.2018г. | C30: ="180" -> 180 | D30: 0.30 | E30: 0.00 | F30: 0.00 | G30: 0.00 | H30: 19.25 | I30: 73.48 | J30: 0 | K30: 0 | L30: 0 | M30: 0 | N30: 18.77 | O30: 0 | P30: 0.48 | Q30: 0 | R30: 0 | S30: 0 | T30: 0.55 | U30: 0.09 | V30: 0.24 | W30: 0.24 | X30: 0 | Y30: 0 | Z30: 0.02 | AA30: 0 | AB30: 0 | AC30: 0 | AD30: 0 | AE30: 0 | AF30: 0 | AG30: 0 | AH30: 0 | AI30: 0 | AJ30: 0 | AK30: 0 | AL30: 0 | AM30: 0 | AN30: 0 | AO30: 0 | AP30: 0 | AQ30: 0 | AR30: 0 | AS30: 0 | AT30: 0 | AU30: 0 | AV30: 0 | AW30: 0 | AX30: 0 | AY30: 0 | AZ30: 0 | BA30: 0 | BB30: 0 | BC30: 0 | BD30: 0 | BE30: 0 | BF30: 0 | BG30: 0 | BH30: 0 | BI30: 0 | BJ30: 0 | BK30: 0 | BL30: 0 | BM30: 0 | BN30: 0 | BO30: 0 | BP30: 0 | BQ30: 0 | BR30: 0 | BS30: 0 | BT30: 0 | BU30: 0 | BV30: 0 | BW30: 0 | BX30: 0 | BY30: 0 | BZ30: 0 | CA30: 0 | CB30: 180.73 | CC30: 9.06 | CE30: 0 | CG30: 0 | CH30: 0 | CI30: 0 | CJ30: 0 | CK30: 0 | CL30: 0 | CM30: 0 | CN30: 0 | CO30: 0 | CP30: 9 | CQ30: 0
A31: ="" ->  | B31: Фрукты свежие яблоки | C31: ="120" -> 120 | D31: 0.44 | E31: 0.00 | F31: 0.44 | G31: 0.00 | H31: 12.65 | I31: 53.11 | J31: 0.11 | K31: 0 | L31: 0.11 | M31: 0 | N31: 9.82 | O31: 0.87 | P31: 1.96 | Q31: 0 | R31: 0 | S31: 0.87 | T31: 0.55 | U31: 0 | V31: 303.27 | W31: 17.45 | X31: 9.82 | Y31: 12 | Z31: 2.4 | AA31: 0 | AB31: 32.73 | AC31: 5.45 | AD31: 0.22 | AE31: 0.03 | AF31: 0.02 | AG31: 0.33 | AH31: 0.44 | AI31: 10.91 | AJ31: 0 | AK31: 13.09 | AL31: 14.18 | AM31: 20.73 | AN31: 19.64 | AO31: 3.27 | AP31: 12 | AQ31: 3.27 | AR31: 9.82 | AS31: 18.55 | AT31: 10.91 | AU31: 85.09 | AV31: 7.64 | AW31: 15.27 | AX31: 45.82 | AY31: 0 | AZ31: 14.18 | BA31: 17.45 | BB31: 6.55 | BC31: 5.45 | BD31: 0 | BE31: 0 | BF31: 0 | BG31: 0 | BH31: 0 | BI31: 0 | BJ31: 0 | BK31: 0 | BL31: 0 | BM31: 0 | BN31: 0 | BO31: 0 | BP31: 0 | BQ31: 0 | BR31: 0 | BS31: 0 | BT31: 0 | BU31: 0 | BV31: 0 | BW31: 0 | BX31: 0 | BY31: 0 | BZ31: 0 | CA31: 0 | CB31: 94.15 | CC31: 18.6 | CE31: 5.45 | CG31: 0 | CH31: 0 | CI31: 0 | CJ31: 0 | CK31: 0 | CL31: 0 | CM31: 0 | CN31: 0 | CO31: 0 | CP31: 0 | CQ31: 0
B32: Итого за 'Полдник' | D32: 1.69 | E32: 0.96 | F32: 2.96 | G32: 0.00 | H32: 42.45 | I32: 192.69 | J32: 1.58 | K32: 0 | L32: 1.58 | M32: 0 | N32: 38.86 | O32: 0.87 | P32: 2.72 | Q32: 0 | R32: 0 | S32: 0.87 | T32: 1.17 | U32: 0.09 | V32: 316.26 | W32: 21.14 | X32: 11.32 | Y32: 21.75 | Z32: 2.54 | AA32: 18 | AB32: 43.53 | AC32: 25.25 | AD32: 0.37 | AE32: 0.05 | AF32: 0.03 | AG32: 0.42 | AH32: 0.69 | AI32: 10.91 | AJ32: 0 | AK32: 13.09 | AL32: 14.18 | AM32: 20.73 | AN32: 19.64 | AO32: 3.27 | AP32: 12 | AQ32: 3.27 | AR32: 9.82 | AS32: 18.55 | AT32: 10.91 | AU32: 85.09 | AV32: 7.64 | AW32: 15.27 | AX32: 45.82 | AY32: 0 | AZ32: 14.18 | BA32: 17.45 | BB32: 6.55 | BC32: 5.45 | BD32: 0 | BE32: 0 | BF32: 0 | BG32: 0 | BH32: 0 | BI32: 0 | BJ32: 0 | BK32: 0 | BL32: 0 | BM32: 0 | BN32: 0 | BO32: 0 | BP32: 0 | BQ32: 0 | BR32: 0 | BS32: 0 | BT32: 0 | BU32: 0 | BV32: 0 | BW32: 0 | BX32: 0 | BY32: 0 | BZ32: 0 | CA32: 0 | CB32: 275.78 | CC32: =SUM($CC$28:$CC$31) -> 30.81 | CD32: =$I$32/$I$43*100 -> 10.93276596 | CE32: 25.25 | CG32: 0 | CH32: 0 | CI32: 0 | CJ32: 0 | CK32: 0 | CL32: 0 | CM32: 0 | CN32: 0 | CO32: 0 | CP32: 9 | CQ32: 0
B33: Ужин
A34: ="" ->  | B34: Овощи тушеные с мясом №125, сб.2021г. | C34: ="250" -> 250 | D34: 21.87 | E34: 18.94 | F34: 26.25 | G34: 0.00 | H34: 24.41 | I34: 417.22 | J34: 0 | K34: 0 | L34: 0 | M34: 0 | N34: 4.46 | O34: 17.45 | P34: 2.5 | Q34: 0 | R34: 0 | S34: 0 | T34: 3.56 | U34: 305.56 | V34: 963.44 | W34: 31.34 | X34: 55.3 | Y34: 268.71 | Z34: 3.95 | AA34: 0 | AB34: 2035.04 | AC34: 0 | AD34: 0 | AE34: 0.12 | AF34: 0.18 | AG34: 5.09 | AH34: 0 | AI34: 3.24 | AJ34: 0 | AK34: 0 | AL34: 0 | AM34: 0 | AN34: 0 | AO34: 0 | AP34: 0 | AQ34: 0 | AR34: 0 | AS34: 0 | AT34: 0 | AU34: 0 | AV34: 0 | AW34: 0 | AX34: 0 | AY34: 0 | AZ34: 0 | BA34: 0 | BB34: 0 | BC34: 0 | BD34: 0 | BE34: 0 | BF34: 0 | BG34: 0 | BH34: 0 | BI34: 0 | BJ34: 0 | BK34: 0 | BL34: 0 | BM34: 0 | BN34: 0 | BO34: 0 | BP34: 0 | BQ34: 0 | BR34: 0 | BS34: 0 | BT34: 0 | BU34: 0 | BV34: 0 | BW34: 0 | BX34: 0 | BY34: 0 | BZ34: 0 | CA34: 0 | CB34: 0 | CC34: 82.11 | CE34: 339.17 | CG34: 0 | CH34: 0 | CI34: 0 | CJ34: 0 | CK34: 0 | CL34: 0 | CM34: 0 | CN34: 0 | CO34: 0 | CP34: 0 | CQ34: 0.8
A35: ="аа" -> аа | B35: Чай с лимоном и сахаром №302, сб. 2018 г. | C35: ="180" -> 180 | D35: 0.12 | E35: 0.00 | F35: 0.02 | G35: 0.00 | H35: 8.51 | I35: 33.82 | J35: 0 | K35: 0 | L35: 0 | M35: 0 | N35: 8.36 | O35: 0 | P35: 0.15 | Q35: 0 | R35: 0 | S35: 0.36 | T35: 0.06 | U35: 0 | V35: 9.27 | W35: 2.46 | X35: 0.66 | Y35: 1.21 | Z35: 0.06 | AA35: 0 | AB35: 0.5 | AC35: 0.13 | AD35: 0.01 | AE35: 0 | AF35: 0 | AG35: 0.01 | AH35: 0.01 | AI35: 1.01 | AJ35: 0 | AK35: 0 | AL35: 0 | AM35: 0 | AN35: 0 | AO35: 0 | AP35: 0 | AQ35: 0 | AR35: 0 | AS35: 0 | AT35: 0 | AU35: 0 | AV35: 0 | AW35: 0 | AX35: 0 | AY35: 0 | AZ35: 0 | BA35: 0 | BB35: 0 | BC35: 0 | BD35: 0 | BE35: 0 | BF35: 0 | BG35: 0 | BH35: 0 | BI35: 0 | BJ35: 0 | BK35: 0 | BL35: 0 | BM35: 0 | BN35: 0 | BO35: 0 | BP35: 0 | BQ35: 0 | BR35: 0 | BS35: 0 | BT35: 0 | BU35: 0 | BV35: 0 | BW35: 0 | BX35: 0 | BY35: 0 | BZ35: 0 | CA35: 0 | CB35: 170.27 | CC35: 2.43 | CE35: 0.08 | CG35: 0 | CH35: 0 | CI35: 0 | CJ35: 0 | CK35: 0 | CL35: 0 | CM35: 0 | CN35: 0 | CO35: 0 | CP35: 6.3 | CQ35: 0
A36: ="-" -> - | B36: Хлеб пшеничный формовой из муки 1 сорта | C36: ="40" -> 40 | D36: 3.04 | E36: 0.00 | F36: 0.36 | G36: 0.36 | H36: 18.76 | I36: 92.02 | J36: 0 | K36: 0 | L36: 0 | M36: 0 | N36: 0.44 | O36: 18.24 | P36: 0.08 | Q36: 0 | R36: 0 | S36: 0 | T36: 0.72 | U36: 0 | V36: 0 | W36: 0 | X36: 0 | Y36: 0 | Z36: 0 | AA36: 0 | AB36: 0 | AC36: 0 | AD36: 0 | AE36: 0 | AF36: 0 | AG36: 0 | AH36: 0 | AI36: 0 | AJ36: 0 | AK36: 146.8 | AL36: 152.8 | AM36: 234 | AN36: 77.6 | AO36: 46 | AP36: 92 | AQ36: 34.8 | AR36: 166.4 | AS36: 103.2 | AT36: 144 | AU36: 118.8 | AV36: 62.4 | AW36: 110.4 | AX36: 923.2 | AY36: 0 | AZ36: 300.8 | BA36: 130.8 | BB36: 86.8 | BC36: 68.8 | BD36: 0 | BE36: 0 | BF36: 0 | BG36: 0 | BH36: 0 | BI36: 0 | BJ36: 0 | BK36: 0.04 | BL36: 0 | BM36: 0 | BN36: 0 | BO36: 0 | BP36: 0 | BQ36: 0 | BR36: 0 | BS36: 0.04 | BT36: 0 | BU36: 0 | BV36: 0.15 | BW36: 0.01 | BX36: 0 | BY36: 0 | BZ36: 0 | CA36: 0 | CB36: 15.64 | CC36: 2.62 | CE36: 0 | CG36: 0 | CH36: 0 | CI36: 0 | CJ36: 0 | CK36: 0 | CL36: 0 | CM36: 0 | CN36: 0 | CO36: 0 | CP36: 0 | CQ36: 0
A37: ="" ->  | B37: Хлеб ржаной | C37: ="40" -> 40 | D37: 2.64 | E37: 0.00 | F37: 0.48 | G37: 0.00 | H37: 16.68 | I37: 77.35 | J37: 0.08 | K37: 0 | L37: 0.08 | M37: 0 | N37: 0.48 | O37: 12.88 | P37: 3.32 | Q37: 0 | R37: 0 | S37: 0.4 | T37: 1 | U37: 0 | V37: 98 | W37: 14 | X37: 18.8 | Y37: 63.2 | Z37: 1.56 | AA37: 0 | AB37: 2 | AC37: 0.4 | AD37: 0.56 | AE37: 0.07 | AF37: 0.03 | AG37: 0.28 | AH37: 0.8 | AI37: 0 | AJ37: 0 | AK37: 128.8 | AL37: 99.2 | AM37: 170.8 | AN37: 89.2 | AO37: 37.2 | AP37: 79.2 | AQ37: 32 | AR37: 148.4 | AS37: 118.8 | AT37: 116.4 | AU37: 185.6 | AV37: 49.6 | AW37: 124 | AX37: 611.6 | AY37: 0 | AZ37: 210.4 | BA37: 116.4 | BB37: 72 | BC37: 52 | BD37: 0 | BE37: 0 | BF37: 0 | BG37: 0 | BH37: 0 | BI37: 0 | BJ37: 0 | BK37: 0.06 | BL37: 0 | BM37: 0 | BN37: 0.01 | BO37: 0 | BP37: 0 | BQ37: 0 | BR37: 0 | BS37: 0.04 | BT37: 0 | BU37: 0 | BV37: 0.19 | BW37: 0.03 | BX37: 0 | BY37: 0 | BZ37: 0 | CA37: 0 | CB37: 18.8 | CC37: 2.62 | CE37: 0.33 | CG37: 0 | CH37: 0 | CI37: 0 | CJ37: 0 | CK37: 0 | CL37: 0 | CM37: 0 | CN37: 0 | CO37: 0 | CP37: 0 | CQ37: 0
B38: Итого за 'Ужин' | D38: 27.67 | E38: 18.94 | F38: 27.11 | G38: 0.36 | H38: 68.36 | I38: 620.41 | J38: 0.08 | K38: 0 | L38: 0.08 | M38: 0 | N38: 13.74 | O38: 48.57 | P38: 6.05 | Q38: 0 | R38: 0 | S38: 0.76 | T38: 5.34 | U38: 305.56 | V38: 1070.72 | W38: 47.79 | X38: 74.76 | Y38: 333.11 | Z38: 5.56 | AA38: 0 | AB38: 2037.54 | AC38: 0.53 | AD38: 0.57 | AE38: 0.19 | AF38: 0.21 | AG38: 5.38 | AH38: 0.81 | AI38: 4.25 | AJ38: 0 | AK38: 275.6 | AL38: 252 | AM38: 404.8 | AN38: 166.8 | AO38: 83.2 | AP38: 171.2 | AQ38: 66.8 | AR38: 314.8 | AS38: 222 | AT38: 260.4 | AU38: 304.4 | AV38: 112 | AW38: 234.4 | AX38: 1534.8 | AY38: 0 | AZ38: 511.2 | BA38: 247.2 | BB38: 158.8 | BC38: 120.8 | BD38: 0 | BE38: 0 | BF38: 0 | BG38: 0 | BH38: 0 | BI38: 0 | BJ38: 0 | BK38: 0.1 | BL38: 0 | BM38: 0.01 | BN38: 0.01 | BO38: 0 | BP38: 0 | BQ38: 0 | BR38: 0.01 | BS38: 0.08 | BT38: 0 | BU38: 0 | BV38: 0.34 | BW38: 0.04 | BX38: 0 | BY38: 0 | BZ38: 0 | CA38: 0 | CB38: 204.71 | CC38: =SUM($CC$33:$CC$37) -> 89.78 | CD38: =$I$38/$I$43*100 -> 35.20056738 | CE38: 339.59 | CG38: 0 | CH38: 0 | CI38: 0 | CJ38: 0 | CK38: 0 | CL38: 0 | CM38: 0 | CN38: 0 | CO38: 0 | CP38: 6.3 | CQ38: 0.8
B39: Ужин 2
A40: ="-" -> - | B40: Йогурт | C40: ="200" -> 200 | D40: 5.86 | E40: 0.00 | F40: 5.00 | G40: 0.00 | H40: 22.58 | I40: 154.24 | J40: 0 | K40: 0 | L40: 0 | M40: 0 | N40: 22.58 | O40: 0 | P40: 0 | Q40: 0 | R40: 0 | S40: 0 | T40: 0 | U40: 0 | V40: 0 | W40: 0 | X40: 0 | Y40: 0 | Z40: 0 | AA40: 0 | AB40: 0 | AC40: 0 | AD40: 0 | AE40: 0 | AF40: 0 | AG40: 0 | AH40: 0 | AI40: 0 | AJ40: 0 | AK40: 0 | AL40: 0 | AM40: 0 | AN40: 0 | AO40: 0 | AP40: 0 | AQ40: 0 | AR40: 0 | AS40: 0 | AT40: 0 | AU40: 0 | AV40: 0 | AW40: 0 | AX40: 0 | AY40: 0 | AZ40: 0 | BA40: 0 | BB40: 0 | BC40: 0 | BD40: 0 | BE40: 0 | BF40: 0 | BG40: 0 | BH40: 0 | BI40: 0 | BJ40: 0 | BK40: 0 | BL40: 0 | BM40: 0 | BN40: 0 | BO40: 0 | BP40: 0 | BQ40: 0 | BR40: 0 | BS40: 0 | BT40: 0 | BU40: 0 | BV40: 0 | BW40: 0 | BX40: 0 | BY40: 0 | BZ40: 0 | CA40: 0 | CB40: 0 | CC40: 22.68 | CE40: 0 | CG40: 0 | CH40: 0 | CI40: 0 | CJ40: 0 | CK40: 0 | CL40: 0 | CM40: 0 | CN40: 0 | CO40: 0 | CP40: 0 | CQ40: 0
B41: Итого за 'Ужин 2' | D41: 5.86 | E41: 0.00 | F41: 5.00 | G41: 0.00 | H41: 22.58 | I41: 154.24 | J41: 0 | K41: 0 | L41: 0 | M41: 0 | N41: 22.58 | O41: 0 | P41: 0 | Q41: 0 | R41: 0 | S41: 0 | T41: 0 | U41: 0 | V41: 0 | W41: 0 | X41: 0 | Y41: 0 | Z41: 0 | AA41: 0 | AB41: 0 | AC41: 0 | AD41: 0 | AE41: 0 | AF41: 0 | AG41: 0 | AH41: 0 | AI41: 0 | AJ41: 0 | AK41: 0 | AL41: 0 | AM41: 0 | AN41: 0 | AO41: 0 | AP41: 0 | AQ41: 0 | AR41: 0 | AS41: 0 | AT41: 0 | AU41: 0 | AV41: 0 | AW41: 0 | AX41: 0 | AY41: 0 | AZ41: 0 | BA41: 0 | BB41: 0 | BC41: 0 | BD41: 0 | BE41: 0 | BF41: 0 | BG41: 0 | BH41: 0 | BI41: 0 | BJ41: 0 | BK41: 0 | BL41: 0 | BM41: 0 | BN41: 0 | BO41: 0 | BP41: 0 | BQ41: 0 | BR41: 0 | BS41: 0 | BT41: 0 | BU41: 0 | BV41: 0 | BW41: 0 | BX41: 0 | BY41: 0 | BZ41: 0 | CA41: 0 | CB41: 0 | CC41: =SUM($CC$39:$CC$40) -> 22.68 | CD41: =$I$41/$I$43*100 -> 8.751205674 | CE41: 0 | CG41: 0 | CH41: 0 | CI41: 0 | CJ41: 0 | CK41: 0 | CL41: 0 | CM41: 0 | CN41: 0 | CO41: 0 | CP41: 0 | CQ41: 0
B42: Итого за день | D42: 104.35 | E42: 67.99 | F42: 98.69 | G42: 1.54 | H42: 351.53 | I42: 2670.25 | J42: 34.75 | K42: 0.78 | L42: 6 | M42: 0 | N42: 164.29 | O42: 165.86 | P42: 21.37 | Q42: 0 | R42: 0 | S42: 5.86 | T42: 25.04 | U42: 2643.42 | V42: 4087.79 | W42: 684.44 | X42: 300.91 | Y42: 1314.26 | Z42: 18.94 | AA42: 277.98 | AB42: 10019.58 | AC42: 1857.54 | AD42: 4.2 | AE42: 0.82 | AF42: 1.31 | AG42: 16.55 | AH42: 28.18 | AI42: 52.67 | AJ42: 0.4 | AK42: 1250.83 | AL42: 1214.08 | AM42: 1878.1 | AN42: 989.05 | AO42: 407.62 | AP42: 874.37 | AQ42: 338.19 | AR42: 1345.66 | AS42: 1061.09 | AT42: 1459.63 | AU42: 1676.79 | AV42: 530.05 | AW42: 989.22 | AX42: 6848.47 | AY42: 0.83 | AZ42: 2173.66 | BA42: 1181.8 | BB42: 788.5 | BC42: 509.67 | BD42: 0.89 | BE42: 0.41 | BF42: 0.22 | BG42: 0.5 | BH42: 0.57 | BI42: 2.63 | BJ42: 0 | BK42: 7.78 | BL42: 0 | BM42: 2.32 | BN42: 0.02 | BO42: 0 | BP42: 0 | BQ42: 0.51 | BR42: 0.8 | BS42: 7.27 | BT42: 0 | BU42: 0 | BV42: 1.61 | BW42: 0.14 | BX42: 0.02 | BY42: 0 | BZ42: 0 | CA42: 0 | CB42: 1817.89 | CC42: 352.83 | CE42: 1947.91 | CG42: 0 | CH42: 0 | CI42: 0 | CJ42: 0 | CK42: 0 | CL42: 0 | CM42: 0 | CN42: 0 | CO42: 0 | CP42: 39.38 | CQ42: 2.88
B43: Норма (СанПиН 2.3/2.4.3590-20 7-11 лет) | D43: 57.75 | E43: 0.00 | F43: 59.25 | G43: 0.00 | H43: 251.25 | I43: 1762.50 | V43: 0 | W43: 0 | X43: 0 | Y43: 0 | Z43: 0 | AA43: 0 | AB43: 0 | AC43: 525 | AD43: 0 | AE43: 0.9 | AF43: 1.05 | AI43: 45 | CI43: 0 | CL43: 0 | CO43: 0
B44: Отклонение | D44: =D42-D43 -> 46.60 | E44: =E42-E43 -> 67.99 | F44: =F42-F43 -> 39.44 | G44: =G42-G43 -> 1.54 | H44: =H42-H43 -> 100.28 | I44: =I42-I43 -> 907.75 | V44: =V42-V43 -> 4087.79 | W44: =W42-W43 -> 684.44 | X44: =X42-X43 -> 300.91 | Y44: =Y42-Y43 -> 1314.26 | Z44: =Z42-Z43 -> 18.94 | AA44: =AA42-AA43 -> 277.98 | AB44: =AB42-AB43 -> 10019.58 | AC44: =AC42-AC43 -> 1332.54 | AD44: =AD42-AD43 -> 4.2 | AE44: =AE42-AE43 -> -0.08 | AF44: =AF42-AF43 -> 0.26 | AI44: =AI42-AI43 -> 7.67 | CI44: =CI42-CI43 -> 0 | CL44: =CL42-CL43 -> 0 | CO44: =CO42-CO43 -> 0
B45: Содержание, % от калорийности | D45: 16.00 | F45: 34.00 | H45: 50.00

Sheet 1
A1: Школа | B1: ГБОУ Белокатайская КШИ | E1: Отд./корп | I1: Дата | J1: 24.09.2025 | K1: ГБОУ Белокатайская КШИ
A3: Прием пищи | B3: Раздел | C3: № рец. | D3: Блюдо | E3: Выход, г | F3: Цена | G3: Калорийность | H3: Белки | I3: Жиры | J3: Углеводы
A4: Завтрак | B4: гор.блюдо | C4: аа | D4: Запеканка из творога с морковью с молоком сгущенным №244, сб. 2018 г. | E4: 170/30 | F4: 52.79 | G4: 420 | H4: 24 | I4: 17 | J4: 43
B5: порционное
B6: гор.напиток | C6: аа | D6: Какао с молоком № 306, сб.2018г. | E6: 200 | F6: 8.24 | G6: 103 | H6: 4 | I6: 4 | J6: 15
B7: хлеб бел. | C7: - | D7: Хлеб пшеничный формовой из муки 1 сорта | E7: 90 | F7: 5.89 | G7: 207 | H7: 7 | I7: 1 | J7: 42
D8: Масло сливочное | E8: 10 | F8: 8.50 | G8: 66 | H8: 0 | I8: 7 | J8: 0
A11: Завтрак 2 | B11: фрукты
B12: напиток | D12: Сок фруктовый | E12: 200 | F12: 20.50 | G12: 86 | H12: 1 | I12: 0 | J12: 21
B13: конд.изд.
A14: Обед | B14: закуска | D14: Винегрет овощной с сельдью №43, сб.2018 г. | E14: 70/30 | F14: 23.51 | G14: 89 | H14: 6 | I14: 4 | J14: 7
B15: 1 блюдо | C15: аа | D15: Суп картофельный с макаронами №61, сб.2018 г. | E15: 250 | F15: 9.15 | G15: 116 | H15: 3 | I15: 2 | J15: 22
B16: 2 блюдо | C16: аа | D16: Кнели куриные с рисом №142, сб.2018 г. | E16: 90 | F16: 54.20 | G16: 229 | H16: 15 | I16: 16 | J16: 6
B17: гарнир | D17: Картофель тушеный №146, сб. 2021г. | E17: 180 | F17: 19.25 | G17: 220 | H17: 4 | I17: 10 | J17: 30
B18: напиток | D18: Чай с молоком и сахаром №301, сб. 2018 г. | E18: 180 | F18: 3.60 | G18: 44 | H18: 1 | I18: 1 | J18: 7
B19: хлеб бел. | C19: - | D19: Хлеб пшеничный формовой из муки 1 сорта | E19: 20 | F19: 1.31 | G19: 46 | H19: 2 | I19: 0 | J19: 9
B20: хлеб черн. | D20: Хлеб ржаной | E20: 40 | F20: 2.62 | G20: 77 | H20: 3 | I20: 0 | J20: 17
A23: Полдник | B23: булочное | D23: Печенье | E23: 15 | F23: 3.15 | G23: 66 | H23: 1 | I23: 3 | J23: 11
B24: напиток | D24: Компот из плодов или ягод сушеных №310, сб.2018г. | E24: 180 | F24: 9.06 | G24: 73 | H24: 0 | I24: 0 | J24: 19
D25: Фрукты свежие яблоки | E25: 120 | F25: 18.60 | G25: 53 | H25: 0 | I25: 0 | J25: 13
A27: Ужин | B27: гор.блюдо | D27: Овощи тушеные с мясом №125, сб.2021г. | E27: 250 | F27: 82.11 | G27: 417 | H27: 22 | I27: 26 | J27: 24
B28: гарнир
B29: напиток | C29: аа | D29: Чай с лимоном и сахаром №302, сб. 2018 г. | E29: 180 | F29: 2.43 | G29: 34 | H29: 0 | I29: 0 | J29: 9
B30: хлеб бел. | C30: - | D30: Хлеб пшеничный формовой из муки 1 сорта | E30: 40 | F30: 2.62 | G30: 92 | H30: 3 | I30: 0 | J30: 19
B31: хлеб черн. | D31: Хлеб ржаной | E31: 40 | F31: 2.62 | G31: 77 | H31: 3 | I31: 0 | J31: 17
B32: закуска
A33: Ужин 2 | B33: кисломол. | C33: - | D33: Йогурт | E33: 200 | F33: 22.68 | G33: 154 | H33: 6 | I33: 5 | J33: 23

Sheet Dop
A1: Дата составления | B1: 2025-09-24T21:03:21
A2: Дата печати | B2: 2025-09-23T10:07:57
A3: Группа | B3: школы младшие классы
A4: Физ.Норма | B4: СанПиН 2.3/2.4.3590-20 7-11 лет
A5: Предприятие | B5: 32
B6: 24.09.2025

Sheet SvodMenu
A4: МЕНЮ
B5: =IF(ПОП_Имя="","",ПОП_Имя) -> 32
B6: =IF(Дата_Сост="","",Дата_Сост) -> 45924.87733
A9: Номер | B9: Наименование изделий (блюд)
